bitfinex/quotes_BTCUSD_20251104
["timestamp","ask_amount","ask_price","bid_price","bid_amount"]
[1762239960039,0.00987492,104750.0,104740.0,0.33802412]
[1762239960240,0.00987492,104750.0,104740.0,0.14907511]
[1762239960241,0.00887492,104750.0,104740.0,0.14907511]
[1762239960462,0.00887492,104750.0,104740.0,0.05937]
[1762239960666,0.1998057,104750.0,104740.0,0.0245]
[1762239960869,0.2367957,104750.0,104730.0,0.05171]
[1762239961225,0.28426798,104750.0,104740.0,0.003]
[1762239961447,0.78279216,104750.0,104740.0,0.003]
[1762239961659,3.95966816,104750.0,104740.0,0.003]
[1762239961866,0.00954745,104740.0,104710.0,0.05227428]
[1762239962067,0.00954745,104740.0,104710.0,0.00070428]
[1762239962068,0.34624287,104720.0,104710.0,0.00070428]
[1762239962419,0.38899391,104720.0,104710.0,0.00070428]
[1762239962647,3.20327991,104720.0,104710.0,0.00070428]
[1762239962895,0.35511391,104720.0,104710.0,0.00070428]
[1762239963031,0.85363809,104720.0,104710.0,0.00070428]
[1762239963853,0.00887104,104720.0,104710.0,0.07591428]
[1762239964163,0.09070511,104740.0,104710.0,0.286018]
[1762239964366,0.09957426,104740.0,104730.0,0.01684]
[1762239964714,0.00886915,104740.0,104730.0,0.56930724]
[1762239964914,0.01648,104770.0,104740.0,0.20048474]
[1762239965120,0.75819266,104770.0,104740.0,0.03487]
[1762239965322,0.75819266,104770.0,104750.0,0.01684]
[1762239965500,0.75819266,104770.0,104750.0,0.01484]
[1762239965906,0.55775286,104770.0,104750.0,0.01484]
[1762239966082,0.00886868,104770.0,104760.0,0.21241256]
[1762239966288,0.00886868,104770.0,104760.0,0.05637]
[1762239966496,0.00886868,104770.0,104760.0,0.07446125]
[1762239966884,0.00886868,104770.0,104760.0,0.26537381]
[1762239967088,0.00886868,104770.0,104760.0,0.14607511]
[1762239967298,0.00886868,104770.0,104760.0,0.16516636]
[1762239967539,0.00183079,104780.0,104770.0,0.19089433]
[1762239967756,0.00197594,104780.0,104770.0,0.26410433]
[1762239967965,0.01083949,104780.0,104770.0,0.26410433]
[1762239968174,0.00197594,104780.0,104770.0,0.26410433]
[1762239968383,0.00197594,104780.0,104770.0,0.60410433]
[1762239969526,0.00076594,104780.0,104770.0,0.60810433]
[1762239969750,0.00076594,104780.0,104770.0,0.61810432]
[1762239969972,0.00076594,104780.0,104770.0,0.61610432]
[1762239970252,0.00076594,104780.0,104770.0,0.61410432]
[1762239970468,0.00076594,104780.0,104770.0,0.62710432]
[1762239970915,0.00076594,104780.0,104770.0,0.62210432]
[1762239971146,0.00176594,104780.0,104770.0,0.62810432]
[1762239971367,0.00176594,104780.0,104770.0,0.61810433]
[1762239971587,0.00176594,104780.0,104770.0,0.61010433]
[1762239971807,0.00176594,104780.0,104770.0,0.62110433]
[1762239975869,0.0004,104830.0,104820.0,0.19080328]
[1762239976090,0.00972818,104830.0,104820.0,0.21247328]
[1762239976320,0.00972818,104830.0,104820.0,0.24642328]
[1762239977176,0.00972818,104830.0,104820.0,0.24742328]
[1762239977389,0.00972818,104830.0,104820.0,0.58742328]
[1762239978125,0.00324043,104830.0,104820.0,0.58742328]
[1762239978338,0.00324043,104830.0,104820.0,0.39662]
[1762239978551,0.00024043,104830.0,104820.0,0.58742328]
[1762239978980,0.00124043,104830.0,104820.0,0.58742328]
[1762239980049,0.00124043,104830.0,104820.0,0.58642328]
[1762239980491,0.00124043,104830.0,104820.0,0.59042328]
[1762239980722,0.00024043,104830.0,104820.0,0.59042328]
[1762239980930,0.00024043,104830.0,104820.0,0.59542328]
[1762239981601,0.00143048,104830.0,104820.0,0.59542328]
[1762239984151,0.00143048,104830.0,104820.0,0.64160555]
[1762239984361,0.00143048,104830.0,104820.0,0.59542328]
[1762239984576,0.00143048,104830.0,104820.0,0.60542327]
[1762239984785,0.00143048,104830.0,104820.0,0.59542328]
[1762239992517,0.00143048,104830.0,104820.0,0.60542327]
[1762239994307,0.00143048,104830.0,104820.0,0.64160555]
[1762239995369,0.00143048,104830.0,104820.0,0.63160556]
[1762239995771,0.00143048,104830.0,104820.0,0.63660555]
[1762239996173,0.00143048,104830.0,104820.0,0.64260555]
[1762239996588,0.00143048,104830.0,104820.0,0.63860555]
[1762239996795,0.00143048,104830.0,104820.0,0.59242328]
[1762239997002,0.00143048,104830.0,104820.0,0.59542328]
[1762239998475,0.00143048,104830.0,104820.0,0.06462]
[1762239998894,0.19221556,104830.0,104820.0,0.06462]
[1762239999381,0.29778067,104830.0,104820.0,0.003]
[1762239999607,0.29978067,104830.0,104820.0,0.003]
[1762239999813,0.96841694,104830.0,104810.0,0.0402]
[1762240000036,0.29959062,104830.0,104810.0,0.0402]
[1762240000269,0.00024043,104830.0,104820.0,0.02168]
[1762240000522,0.19102551,104830.0,104820.0,0.02168]
[1762240000773,0.00624043,104830.0,104820.0,0.07252032]
[1762240000974,0.00424043,104830.0,104820.0,0.07252032]
[1762240001218,0.00624043,104830.0,104820.0,0.07252032]
[1762240001436,0.00424043,104830.0,104820.0,0.07252032]
[1762240001885,0.00424043,104830.0,104820.0,0.2633236]
[1762240002107,0.00424043,104830.0,104820.0,0.24424328]
[1762240002338,0.00024043,104830.0,104820.0,0.05344]
[1762240002562,0.19102551,104830.0,104820.0,0.02168]
[1762240002779,0.95236689,104830.0,104820.0,0.02168]
[1762240003001,0.95036689,104830.0,104820.0,0.02168]
[1762240003241,0.95036689,104830.0,104820.0,0.05344]
[1762240003242,0.00024043,104830.0,104820.0,0.05344]
[1762240003486,0.00124043,104830.0,104820.0,0.02168]
[1762240003926,0.00124043,104830.0,104820.0,0.24424328]
[1762240004155,0.00324043,104830.0,104820.0,0.24424328]
[1762240005048,0.00224043,104830.0,104820.0,0.24424328]
[1762240005268,0.00224043,104830.0,104820.0,0.24624328]
[1762240005482,0.00224043,104830.0,104820.0,0.05544]
[1762240005706,0.00143046,104830.0,104820.0,0.05544]
[1762240005919,0.00143046,104830.0,104820.0,0.02368]
[1762240006135,0.00143046,104830.0,104820.0,0.02468]
[1762240006575,0.00143046,104830.0,104820.0,0.02268]
[1762240006779,0.00143046,104830.0,104820.0,0.05171]
[1762240007037,0.19221554,104830.0,104820.0,0.02168]
[1762240007270,0.19221554,104830.0,104810.0,0.12917511]
[1762240007502,0.00024043,104830.0,104820.0,0.01997]
[1762240007730,0.19102551,104830.0,104820.0,0.01997]
[1762240008428,0.19102551,104830.0,104810.0,0.12917511]
[1762240008429,0.21099551,104830.0,104810.0,0.12917511]
[1762240008669,0.19080328,104820.0,104810.0,0.00844]
[1762240008888,1.00040886,104830.0,104810.0,0.00844]
[1762240009357,0.80126822,104830.0,104810.0,0.00844]
[1762240009641,0.77119822,104830.0,104810.0,0.03847]
[1762240010127,0.28149216,104830.0,104810.0,0.04147]
[1762240010130,0.24574756,104840.0,104810.0,0.04047]
[1762240010131,0.04544205,104840.0,104810.0,0.04047]
[1762240010398,2.814286,104830.0,104820.0,0.05]
[1762240010673,0.003,104830.0,104820.0,0.05]
[1762240010939,0.19378508,104830.0,104820.0,0.01997]
[1762240011214,0.002,104830.0,104820.0,0.01997]
[1762240011712,0.002,104830.0,104820.0,0.06865812]
[1762240011963,0.00054579,104840.0,104820.0,0.06497037]
[1762240012269,0.00254579,104840.0,104820.0,0.25243643]
[1762240012905,0.19331486,104840.0,104820.0,0.05]
[1762240013111,2.814286,104830.0,104820.0,0.05]
[1762240013322,0.19078508,104830.0,104820.0,0.01997]
[1762240013553,0.21075508,104830.0,104810.0,0.03847]
[1762240013766,0.30146019,104830.0,104810.0,0.03847]
[1762240013972,0.00095211,104820.0,104810.0,0.03847]
[1762240014399,0.19175539,104820.0,104810.0,0.05844]
[1762240015056,0.19175539,104820.0,104810.0,0.02841]
[1762240015265,0.21172539,104820.0,104810.0,0.00844]
[1762240016149,0.21172539,104820.0,104800.0,0.03003]
[1762240016365,0.21077328,104820.0,104810.0,4e-05]
[1762240016813,0.24084328,104820.0,104810.0,4e-05]
[1762240017031,1.24947955,104820.0,104810.0,4e-05]
[1762240017238,1.24947955,104820.0,104810.0,8e-05]
[1762240017460,1.24947955,104820.0,104810.0,0.00012]
[1762240017675,4.06376555,104820.0,104810.0,0.00012]
[1762240018318,4.06376555,104820.0,104810.0,0.00016]
[1762240019199,4.03569555,104820.0,104810.0,0.00016]
[1762240019416,4.03669555,104820.0,104810.0,0.00016]
[1762240019627,4.05966636,104820.0,104810.0,0.00016]
[1762240019838,3.39103009,104820.0,104810.0,0.00016]
[1762240021380,0.343,104820.0,104810.0,0.03527]
[1762240021605,0.003,104820.0,104810.0,0.0653]
[1762240021827,0.003,104820.0,104810.0,0.25612148]
[1762240022049,0.00395211,104820.0,104810.0,0.25612148]
[1762240022264,0.00195211,104820.0,104810.0,0.25612148]
[1762240022701,0.00095211,104820.0,104810.0,0.25812148]
[1762240023372,0.00095211,104820.0,104810.0,0.25912148]
[1762240023596,0.00095211,104820.0,104810.0,0.0683]
[1762240023927,0.90735166,104820.0,104810.0,0.00316]
[1762240024245,3.02601139,104820.0,104810.0,0.00316]
[1762240024458,3.69464766,104820.0,104810.0,0.00316]
[1762240024668,3.72163766,104820.0,104810.0,0.00316]
[1762240024872,3.72163766,104820.0,104810.0,0.00116]
[1762240025106,3.69464766,104820.0,104810.0,0.00116]
[1762240025318,3.69664766,104820.0,104810.0,0.00016]
[1762240025533,3.72463766,104820.0,104810.0,0.00016]
[1762240025969,4.08545566,104820.0,104810.0,0.00016]
[1762240026178,4.09247566,104820.0,104810.0,0.00016]
[1762240026618,4.09247566,104820.0,104810.0,0.0002]
[1762240027311,4.09247566,104820.0,104810.0,0.00024]
[1762240027518,4.10746648,104820.0,104810.0,0.00028]
[1762240027761,4.10746648,104820.0,104810.0,0.00032]
[1762240027969,4.09546649,104820.0,104810.0,0.00032]
[1762240028203,4.10546648,104820.0,104810.0,0.00032]
[1762240028423,4.10846648,104820.0,104810.0,0.00032]
[1762240029012,4.11046648,104820.0,104810.0,0.00032]
[1762240029205,3.43183022,104820.0,104810.0,0.00032]
[1762240029403,4.09547566,104820.0,104810.0,0.00032]
[1762240029807,4.12208561,104820.0,104810.0,0.00032]
[1762240031291,4.11321563,104820.0,104810.0,0.00032]
[1762240031670,3.44457936,104820.0,104810.0,0.00032]
[1762240031871,3.38140708,104820.0,104810.0,0.00032]
[1762240032063,3.39984939,104820.0,104810.0,0.00032]
[1762240032226,3.40686939,104820.0,104810.0,0.00032]
[1762240032443,3.41481716,104820.0,104810.0,0.00032]
[1762240033000,4.10818499,104820.0,104810.0,0.00032]
[1762240033215,4.11818498,104820.0,104810.0,0.00032]
[1762240033429,4.12317595,104820.0,104810.0,0.00032]
[1762240034261,4.11317596,104820.0,104810.0,0.00032]
[1762240034463,4.12317595,104820.0,104810.0,0.00032]
[1762240035643,3.44453969,104820.0,104810.0,0.00032]
[1762240035832,3.40835741,104820.0,104810.0,0.00032]
[1762240036079,3.38565488,104820.0,104810.0,0.00032]
[1762240036296,0.02096777,104820.0,104810.0,0.03656]
[1762240036514,0.006,104820.0,104810.0,0.25648148]
[1762240036944,0.006,104820.0,104810.0,0.06566]
[1762240037167,0.002,104820.0,104810.0,0.25648148]
[1762240037377,0.00054579,104840.0,104810.0,0.25648148]
[1762240037586,0.00054579,104840.0,104810.0,0.25748148]
[1762240037828,0.00054579,104840.0,104830.0,0.03624]
[1762240038264,0.00054579,104840.0,104830.0,0.06534]
[1762240038669,0.00154579,104840.0,104830.0,0.06534]
[1762240038871,0.00054579,104840.0,104830.0,0.06534]
[1762240039554,0.00154579,104840.0,104830.0,0.08321795]
[1762240039769,0.00154579,104840.0,104830.0,0.25612508]
[1762240039978,0.00154579,104840.0,104810.0,0.00032]
[1762240039979,2.814286,104820.0,104810.0,0.00032]
[1762240040187,0.28926482,104820.0,104810.0,0.00032]
[1762240040402,0.09873511,104820.0,104810.0,0.00032]
[1762240040610,0.19080328,104820.0,104810.0,0.01563]
[1762240040822,0.28150839,104820.0,104810.0,0.01563]
[1762240041239,0.28150839,104820.0,104810.0,0.01863]
[1762240041444,0.28150839,104820.0,104810.0,0.01963]
[1762240041646,0.28150839,104820.0,104810.0,0.01863]
[1762240041847,0.95114466,104820.0,104810.0,0.01863]
[1762240042050,0.28250839,104820.0,104810.0,0.01863]
[1762240042269,0.95114466,104820.0,104810.0,0.01863]
[1762240042563,0.28250839,104820.0,104810.0,0.01563]
[1762240042689,0.69046639,104820.0,104810.0,0.01563]
[1762240043308,0.49966311,104820.0,104810.0,0.01563]
[1762240043513,0.69046639,104820.0,104810.0,0.01563]
[1762240043880,0.49966311,104820.0,104810.0,0.01563]
[1762240044094,0.69046639,104820.0,104810.0,0.01563]
[1762240044298,0.68907982,104820.0,104810.0,0.01563]
[1762240044943,0.19141671,104820.0,104810.0,0.01563]
[1762240045169,0.68907982,104820.0,104810.0,0.01563]
[1762240046126,0.49827654,104820.0,104810.0,0.01563]
[1762240046376,0.00061343,104820.0,104810.0,0.01563]
[1762240046589,0.00061343,104820.0,104810.0,0.06566]
[1762240046813,0.06689217,104840.0,104810.0,0.27556336]
[1762240047010,0.20849363,104840.0,104820.0,0.05003]
[1762240047241,1.04615919,104840.0,104820.0,0.02093]
[1762240047366,0.51538942,104840.0,104820.0,0.05003]
[1762240047555,0.01772631,104840.0,104830.0,0.03624]
[1762240047959,0.01772631,104840.0,104830.0,0.06534]
[1762240048169,0.02529645,104850.0,104830.0,0.06534]
[1762240048376,0.13348831,104850.0,104830.0,0.06534]
[1762240048581,0.82190035,104850.0,104830.0,0.06534]
[1762240048785,0.63115142,104850.0,104830.0,0.06534]
[1762240048979,0.03259213,104850.0,104830.0,0.25612186]
[1762240049250,0.01033446,104860.0,104840.0,0.26173356]
[1762240049449,0.36660104,104860.0,104850.0,0.0366]
[1762240049621,0.36660104,104860.0,104850.0,0.0356]
[1762240049808,0.02660104,104860.0,104850.0,0.0356]
[1762240050013,0.51539714,104860.0,104850.0,0.0356]
[1762240050217,0.70612763,104860.0,104850.0,0.0356]
[1762240050451,0.71915636,104860.0,104850.0,0.01525]
[1762240050704,0.72802289,104860.0,104850.0,0.01525]
[1762240051420,0.52842587,104860.0,104850.0,0.01525]
[1762240051576,0.52542587,104860.0,104850.0,0.01525]
[1762240051744,0.71715636,104860.0,104850.0,0.01525]
[1762240052726,0.735233,104860.0,104830.0,0.04585]
[1762240052933,0.77911926,104850.0,104830.0,0.04585]
[1762240053145,3.50295392,104840.0,104830.0,0.01531]
[1762240053339,0.49790104,104840.0,104830.0,0.01531]
[1762240053557,0.00023793,104840.0,104830.0,0.0672]
[1762240053784,0.19100481,104840.0,104830.0,0.03666]
[1762240053971,0.68866792,104840.0,104830.0,0.03666]
[1762240054123,0.49790104,104840.0,104830.0,0.03666]
[1762240054353,0.49790104,104840.0,104830.0,0.0692]
[1762240054562,0.68866792,104840.0,104830.0,0.0692]
[1762240054782,0.49790104,104840.0,104830.0,0.03866]
[1762240055406,0.00023793,104840.0,104830.0,0.03866]
[1762240055612,0.49790104,104840.0,104830.0,0.04166]
[1762240056014,0.49790104,104840.0,104830.0,0.03966]
[1762240056214,0.68866792,104840.0,104830.0,0.03666]
[1762240056416,0.69887792,104840.0,104830.0,0.01531]
[1762240056848,0.19078508,104830.0,104820.0,0.01525]
[1762240057051,0.19078508,104830.0,104820.0,0.00014579]
[1762240057052,0.7883633,104830.0,104820.0,0.00014579]
[1762240057903,0.59757822,104830.0,104820.0,0.00014579]
[1762240058153,1.1375733,104830.0,104820.0,0.00314579]
[1762240058366,3.9518593,104830.0,104820.0,0.00314579]
[1762240058594,3.98804158,104830.0,104820.0,0.00314579]
[1762240058809,3.98804158,104830.0,104820.0,0.00114579]
[1762240059038,3.9930319,104830.0,104820.0,0.00114579]
[1762240059261,3.9930319,104830.0,104820.0,0.00014579]
[1762240059677,3.9940319,104830.0,104820.0,0.00014579]
[1762240059879,3.9930319,104830.0,104820.0,0.00014579]
[1762240060316,4.01100808,104830.0,104820.0,0.00014579]
[1762240060547,0.72464867,104820.0,104810.0,0.00032]
[1762240060765,3.89749357,104820.0,104810.0,0.00032]
[1762240061634,3.89749357,104820.0,104810.0,0.0002]
[1762240061899,0.19087612,104780.0,104770.0,0.00183008]
[1762240062106,0.70695923,104780.0,104770.0,0.00183008]
[1762240063208,0.70695923,104780.0,104770.0,0.00431644]
[1762240063663,0.51608311,104780.0,104770.0,0.00431644]
[1762240063887,0.29077301,104790.0,104770.0,0.07145644]
[1762240063888,0.59757822,104790.0,104770.0,0.07145644]
[1762240064121,0.34921,104790.0,104780.0,0.02135]
[1762240064365,0.43991511,104790.0,104780.0,0.02135]
[1762240064592,0.63077301,104790.0,104780.0,0.02135]
[1762240064828,0.19087612,104780.0,104770.0,0.05010644]
[1762240065028,0.93757822,104790.0,104770.0,0.07333644]
[1762240065148,0.93757822,104790.0,104770.0,0.07133644]
[1762240065584,1.12843946,104790.0,104780.0,0.002]
[1762240065788,1.12843946,104790.0,104780.0,0.005]
[1762240065998,0.93757822,104790.0,104780.0,0.005]
[1762240066436,0.93757822,104790.0,104780.0,0.003]
[1762240067304,0.93757822,104790.0,104780.0,0.02623]
[1762240067502,0.09991511,104790.0,104780.0,0.05616]
[1762240067945,0.09991511,104790.0,104780.0,0.02623]
[1762240068150,0.59757822,104790.0,104780.0,0.02623]
[1762240068982,0.09991511,104790.0,104780.0,0.02623]
[1762240070199,0.09991511,104790.0,104780.0,0.05616]
[1762240070420,0.35497868,104800.0,104780.0,0.24703598]
[1762240070655,0.09070511,104790.0,104780.0,0.005]
[1762240070865,0.58836822,104790.0,104780.0,0.005]
[1762240071083,0.77922612,104790.0,104780.0,0.005]
[1762240071299,0.77922612,104790.0,104780.0,0.002]
[1762240071729,0.58836822,104790.0,104780.0,0.002]
[1762240071939,0.77922612,104790.0,104780.0,0.002]
[1762240072156,0.78854612,104790.0,104780.0,0.002]
[1762240072390,0.59768822,104790.0,104780.0,0.002]
[1762240072605,0.59764822,104790.0,104780.0,0.002]
[1762240073049,0.85264179,104800.0,104780.0,0.05316]
[1762240073332,0.35497868,104800.0,104790.0,0.01626]
[1762240073543,0.35497868,104800.0,104780.0,0.26312285]
[1762240073544,0.54582385,104800.0,104780.0,0.02323]
[1762240073747,0.35497868,104800.0,104780.0,0.05516]
[1762240073955,0.5458197,104800.0,104780.0,0.05516]
[1762240074169,0.5458197,104800.0,104780.0,0.07424761]
[1762240074378,0.85264179,104800.0,104780.0,0.07224761]
[1762240074602,0.35497868,104800.0,104780.0,0.07224761]
[1762240074806,0.54581963,104800.0,104780.0,0.07024761]
[1762240075457,1.04348274,104800.0,104780.0,0.05216]
[1762240076527,1.04348274,104800.0,104790.0,0.01626]
[1762240077192,1.04348148,104800.0,104790.0,0.01626]
[1762240077379,0.85264179,104800.0,104790.0,0.01626]
[1762240077930,0.85264179,104800.0,104790.0,0.01726]
[1762240078374,0.35497868,104800.0,104790.0,0.06842]
[1762240078548,0.35497868,104800.0,104790.0,0.08750579]
[1762240078549,0.34,104800.0,104790.0,0.08750579]
[1762240078941,0.34,104800.0,104790.0,0.2592779]
[1762240079299,0.34,104800.0,104790.0,0.06842]
[1762240080424,1.12850971,104810.0,104790.0,0.06842]
[1762240080630,0.93768822,104810.0,104790.0,0.06842]
[1762240080839,0.27579226,104820.0,104790.0,0.06842]
[1762240080840,0.02994654,104820.0,104800.0,0.05116]
[1762240081032,0.72695286,104840.0,104820.0,0.19080219]
[1762240081033,0.00023793,104840.0,104820.0,0.19080219]
[1762240081274,0.00023793,104840.0,104830.0,0.53078508]
[1762240081491,0.0004,104870.0,104840.0,0.19076354]
[1762240081700,0.0004,104870.0,104860.0,0.03749]
[1762240081905,0.49806311,104870.0,104860.0,0.03749]
[1762240082248,0.49820884,104870.0,104860.0,0.03749]
[1762240082662,0.00054573,104870.0,104860.0,0.06742]
[1762240082840,0.00054573,104870.0,104860.0,0.27722353]
[1762240083035,0.00054573,104870.0,104860.0,0.25815049]
[1762240083239,0.00054573,104870.0,104860.0,0.3488556]
[1762240083871,0.00254573,104870.0,104860.0,0.3488556]
[1762240084281,0.00054573,104870.0,104860.0,0.3488556]
[1762240084503,0.00054573,104870.0,104860.0,0.3498556]
[1762240084783,0.00054573,104870.0,104860.0,0.3508556]
[1762240085198,0.00054573,104870.0,104860.0,0.3558556]
[1762240085883,0.00054573,104870.0,104860.0,0.3538556]
[1762240086023,8.573e-05,104870.0,104860.0,0.73003788]
[1762240086226,8.573e-05,104870.0,104860.0,0.73903788]
[1762240087091,0.63197466,104910.0,104890.0,0.03749]
[1762240087237,0.49766311,104900.0,104890.0,0.01626]
[1762240087603,0.0014267,104900.0,104890.0,0.06742]
[1762240088373,0.49908981,104900.0,104890.0,0.06842]
[1762240088585,0.54023377,104890.0,104860.0,0.05519]
[1762240088799,0.58836822,104870.0,104860.0,0.05519]
[1762240089017,0.58836822,104870.0,104860.0,0.04619]
[1762240089186,0.77908053,104870.0,104860.0,0.06742]
[1762240089589,0.58836822,104870.0,104860.0,0.06742]
[1762240089832,0.77908053,104870.0,104860.0,0.06742]
[1762240090037,0.58836822,104870.0,104860.0,0.06742]
[1762240090187,0.49766311,104870.0,104860.0,0.07042]
[1762240091262,0.62140509,104890.0,104860.0,0.28222347]
[1762240091383,1.1190682,104890.0,104870.0,0.05116]
[1762240091894,1.1190682,104890.0,104870.0,0.02123]
[1762240092727,1.1200682,104890.0,104870.0,0.05116]
[1762240093133,0.19069412,104880.0,104870.0,0.05116]
[1762240093543,0.68835723,104880.0,104870.0,0.05116]
[1762240093747,0.68835723,104880.0,104870.0,0.02123]
[1762240093960,0.19071231,104870.0,104860.0,0.01626]
[1762240094168,0.77979408,104870.0,104860.0,0.04619]
[1762240094370,0.77979408,104870.0,104860.0,0.01626]
[1762240094575,0.77979408,104870.0,104860.0,0.06742]
[1762240094987,0.58908177,104870.0,104860.0,0.06742]
[1762240095626,0.09141866,104870.0,104860.0,0.06942]
[1762240095831,0.09141866,104870.0,104860.0,0.03949]
[1762240095832,0.77979408,104870.0,104860.0,0.03949]
[1762240096040,0.77979408,104870.0,104860.0,0.04249]
[1762240096255,0.77979408,104870.0,104860.0,0.07442]
[1762240097332,0.77979408,104870.0,104860.0,0.04249]
[1762240098161,0.77979408,104870.0,104860.0,0.07442]
[1762240098369,0.77979408,104870.0,104860.0,0.04249]
[1762240099027,0.77979408,104870.0,104860.0,0.07442]
[1762240100984,0.78858408,104870.0,104860.0,0.02126]
[1762240101483,0.77979408,104870.0,104860.0,0.04136]
[1762240101929,0.77979408,104870.0,104860.0,0.06829]
[1762240102141,0.09241866,104870.0,104860.0,0.06829]
[1762240102351,0.00171355,104870.0,104860.0,0.06829]
[1762240102574,0.00071355,104870.0,104860.0,0.06829]
[1762240102812,0.19142586,104870.0,104860.0,0.06829]
[1762240103029,0.19142586,104870.0,104860.0,0.06929]
[1762240103471,0.00071355,104870.0,104860.0,0.06929]
[1762240103686,0.00071355,104870.0,104860.0,0.07029]
[1762240103901,0.00071355,104870.0,104860.0,0.06929]
[1762240104113,0.09141866,104870.0,104860.0,0.06829]
[1762240104325,0.09141866,104870.0,104860.0,0.07129]
[1762240104545,0.28213097,104870.0,104860.0,0.07629]
[1762240104757,0.28213097,104870.0,104860.0,0.04436]
[1762240104968,0.95926043,104870.0,104860.0,0.008]
[1762240105198,4.12233643,104870.0,104860.0,0.008]
[1762240105422,4.12233643,104870.0,104860.0,0.003]
[1762240105863,4.15851871,104870.0,104860.0,0.004]
[1762240106293,4.15851871,104870.0,104860.0,0.001]
[1762240106478,4.11354643,104870.0,104860.0,0.001]
[1762240106730,4.11354643,104870.0,104860.0,0.002]
[1762240106937,4.11354643,104870.0,104860.0,0.001]
[1762240107634,0.53074011,104860.0,104840.0,0.04711]
[1762240107819,0.53074011,104860.0,104840.0,0.06633241]
[1762240108024,0.53074011,104860.0,104850.0,0.0201]
[1762240108237,0.001,104870.0,104850.0,0.14273511]
[1762240108451,0.20019064,104900.0,104860.0,0.24276049]
[1762240108656,0.20019064,104900.0,104880.0,0.0201]
[1762240108657,0.28138105,104890.0,104880.0,0.0201]
[1762240108875,0.2902784,104890.0,104870.0,0.04711]
[1762240109091,0.43960246,104890.0,104870.0,0.22496264]
[1762240109297,0.63027895,104890.0,104870.0,0.01518]
[1762240109505,0.09960246,104890.0,104870.0,0.03425123]
[1762240109713,0.09960246,104890.0,104870.0,0.22496315]
[1762240109923,0.09960246,104890.0,104870.0,0.23556192]
[1762240110146,0.09960246,104890.0,104870.0,0.23756192]
[1762240110570,0.29027918,104890.0,104870.0,0.04685]
[1762240110983,0.29027909,104890.0,104870.0,0.04685]
[1762240111183,0.29027909,104890.0,104870.0,0.04985]
[1762240111871,0.28977373,104890.0,104870.0,0.04985]
[1762240112082,0.09909717,104890.0,104880.0,0.01955]
[1762240112474,0.09909717,104890.0,104880.0,0.04922]
[1762240112714,0.09909717,104890.0,104880.0,0.07523109]
[1762240113123,0.28977311,104890.0,104880.0,0.04922]
[1762240113329,0.28977311,104890.0,104880.0,0.05122]
[1762240113537,0.29096214,104890.0,104880.0,0.05422]
[1762240114924,0.29096214,104890.0,104880.0,0.02455]
[1762240115557,0.29096214,104890.0,104880.0,0.05422]
[1762240116333,4.1212076,104890.0,104880.0,0.005]
[1762240116768,4.11231025,104890.0,104880.0,0.005]
[1762240116980,4.12122188,104890.0,104880.0,0.005]
[1762240117325,4.12122188,104890.0,104880.0,0.002]
[1762240117525,4.12122188,104890.0,104880.0,0.003]
[1762240118488,4.12122188,104890.0,104880.0,0.001]
[1762240118887,4.12122188,104890.0,104880.0,0.002]
[1762240120102,4.22341794,104890.0,104880.0,0.002]
[1762240120322,4.45571956,104890.0,104880.0,0.002]
[1762240120532,4.47571954,104890.0,104880.0,0.002]
[1762240120728,2.814286,104850.0,104840.0,0.04485]
[1762240120933,0.66833946,104850.0,104840.0,0.04499573]
[1762240121131,0.66833946,104850.0,104840.0,0.06454573]
[1762240121652,2.814286,104850.0,104840.0,0.0726263]
[1762240121851,0.85908716,104860.0,104840.0,0.0726263]
[1762240122076,0.5307477,104860.0,104850.0,0.04922]
[1762240123194,1.19908716,104860.0,104850.0,0.04922]
[1762240123932,1.19908716,104860.0,104850.0,0.05322]
[1762240124134,1.00833946,104860.0,104850.0,0.06088263]
[1762240124342,0.34,104860.0,104850.0,0.06088263]
[1762240124759,2.814286,104860.0,104850.0,0.06388263]
[1762240125206,3.00501649,104860.0,104850.0,0.06388263]
[1762240125439,3.00501649,104860.0,104850.0,0.02655]
[1762240125440,0.85906995,104860.0,104850.0,0.02655]
[1762240126750,0.19073049,104860.0,104850.0,0.02655]
[1762240126978,0.85906995,104860.0,104850.0,0.05642]
[1762240127196,1.19954572,104860.0,104850.0,0.02655]
[1762240128059,1.00881523,104860.0,104850.0,0.05642]
[1762240128274,1.00881523,104860.0,104850.0,0.03863]
[1762240128929,0.53120626,104860.0,104850.0,0.03863]
[1762240129145,1.19954572,104860.0,104850.0,0.03863]
[1762240129362,1.00881523,104860.0,104850.0,0.03863]
[1762240129820,0.66833946,104860.0,104850.0,0.04402557]
[1762240130041,0.85906995,104860.0,104850.0,0.01415557]
[1762240130564,0.85906995,104860.0,104850.0,0.04402557]
[1762240130666,0.91173647,104860.0,104830.0,0.01626]
[1762240130899,0.19083941,104810.0,104800.0,0.01429]
[1762240131124,0.85917887,104810.0,104800.0,0.03421]
[1762240132237,0.85917887,104810.0,104800.0,0.03469636]
[1762240132653,0.85917887,104810.0,104800.0,0.03869636]
[1762240132895,0.86937781,104810.0,104800.0,0.03869636]
[1762240133380,0.98295387,104810.0,104800.0,0.01877636]
[1762240133836,0.88837781,104810.0,104800.0,0.01877636]
[1762240134907,0.88837781,104810.0,104800.0,0.00448636]
[1762240135110,0.91819781,104810.0,104800.0,0.00448636]
[1762240135319,0.93317306,104810.0,104800.0,0.00448636]
[1762240135520,0.91819781,104810.0,104800.0,0.00448636]
[1762240136350,3.73248381,104810.0,104800.0,0.00631575]
[1762240136999,3.73248381,104810.0,104770.0,0.34]
[1762240137000,3.82705987,104810.0,104770.0,0.34]
[1762240137198,0.19009169,104770.0,104750.0,0.04456]
[1762240137404,0.19091256,104760.0,104750.0,0.04456]
[1762240137837,0.85925202,104760.0,104750.0,0.06448]
[1762240138326,0.85925202,104760.0,104750.0,0.06567095]
[1762240138534,0.85925202,104760.0,104750.0,0.0658161]
[1762240138742,0.66833946,104760.0,104750.0,0.0658161]
[1762240138948,2.814286,104760.0,104750.0,0.08282671]
[1762240139386,2.814286,104760.0,104750.0,0.07782671]
[1762240139806,2.814286,104760.0,104750.0,0.07382671]
[1762240140018,0.19091256,104760.0,104750.0,0.07382671]
[1762240140230,0.95770626,104770.0,104750.0,0.07382671]
[1762240140440,2.814286,104770.0,104760.0,0.04979]
[1762240140637,0.85923379,104770.0,104760.0,0.01992]
[1762240140841,0.19091256,104760.0,104750.0,0.01483515]
[1762240141054,0.96895713,104760.0,104750.0,0.00154515]
[1762240141491,3.81306313,104760.0,104750.0,0.00054515]